bitfinex-derivatives/quotes_ETHF0:USTF0_20260112
["timestamp","ask_amount","ask_price","bid_price","bid_amount"]
[1768233964449,0.14364241,3137.7,3134.7,0.25631234]
[1768233964450,0.1343916,3137.5,3134.8,0.13660808]
[1768233964849,0.1343916,3137.5,3135.0,0.13660808]
[1768233965051,0.1343916,3137.4,3135.0,0.13660808]
[1768233965554,0.1343916,3137.4,3135.0,0.14046767]
[1768233966557,0.1343916,3137.2,3135.0,0.14046767]
[1768233967356,0.1343916,3137.2,3134.3,5.33772429]
[1768233967357,2.21683683,3135.9,3134.3,5.33772429]
[1768233967554,2.85082919,3136.4,3134.2,0.13660808]
[1768233967749,3.191,3136.4,3134.2,0.13660808]
[1768233968052,3.191,3136.4,3134.4,0.13660808]
[1768233968452,3.191,3136.4,3134.4,0.13916375]
[1768233969061,3.191,3136.6,3134.4,0.13916375]
[1768233969753,6.86393431,3137.7,3134.4,0.13916375]
[1768233969965,4.84749933,3137.6,3134.5,0.13660808]
[1768233970164,0.00360024,3137.7,3134.5,0.13660808]
[1768233970362,4.84746372,3137.6,3134.5,0.13660808]
[1768233970553,4.499,3137.6,3134.5,0.13660808]
[1768233972561,2.56529904,3137.5,3134.5,0.13660808]
[1768233972860,0.34846221,3137.4,3134.5,0.13660808]
[1768233973162,2.85082919,3137.4,3134.5,0.13660808]
[1768233973656,0.34854921,3137.3,3134.5,0.13660808]
[1768233973852,2.85082919,3137.4,3134.5,0.13660808]
[1768233974052,6.0,3137.3,3134.5,0.13660808]
[1768233974253,0.34842818,3137.2,3134.5,0.13660808]
[1768233974455,0.34842818,3137.1,3134.5,0.13660808]
[1768233974654,0.34842818,3137.0,3134.5,0.13660808]
[1768233974853,0.34842818,3136.9,3134.5,0.13660808]
[1768233975059,0.34842872,3136.8,3134.4,0.00255567]
[1768233975361,0.34842872,3136.7,3134.4,0.00255567]
[1768233975558,0.34842872,3136.6,3134.4,0.14447596]
[1768233975861,1.309,3136.6,3134.4,0.14447596]
[1768233976762,5.06766602,3137.4,3134.4,0.14447596]
[1768233976763,1.309,3136.5,3134.4,0.14447596]
[1768233977662,2.85082919,3137.5,3134.4,0.14447596]
[1768233977966,4.84897531,3137.4,3134.4,0.14447596]
[1768233978166,0.34797531,3137.3,3134.4,0.14447596]
[1768233978367,0.34797531,3137.2,3134.4,0.14447596]
[1768233978568,4.502,3137.1,3134.4,0.14447596]
[1768233978754,3.192,3137.5,3134.6,0.14192029]
[1768233978958,1.31,3137.4,3134.6,0.14192029]
[1768233979362,0.00360024,3137.7,3134.6,0.14192029]
[1768233979568,1.31,3137.6,3134.6,0.14192029]
[1768233979864,0.34785326,3137.5,3134.6,0.14192029]
[1768233980065,1.31,3137.5,3134.7,0.14192029]
[1768233980971,1.31,3137.5,3134.9,0.14192029]
[1768233982361,1.31,3137.4,3134.9,0.14192029]
[1768233982757,1.31,3137.5,3134.9,0.14192029]
[1768233982970,0.00360024,3137.7,3134.9,0.14192029]
[1768233983467,0.00360024,3137.7,3135.3,0.14192029]
[1768233983971,1.31,3137.6,3135.3,0.14192029]
[1768233984466,1.95435269,3137.1,3134.8,0.14192029]
[1768233985072,0.00360024,3137.7,3134.8,0.14192029]
[1768233985266,1.95435269,3137.3,3134.8,0.14192029]
[1768233985663,0.00360024,3137.7,3134.8,0.14192029]
[1768233985974,4.85001253,3137.6,3134.8,0.14192029]
[1768233986175,0.34801887,3137.5,3134.8,0.14192029]
[1768233986374,2.30239408,3137.4,3134.4,0.00255567]
[1768233986566,1.95435269,3136.9,3134.4,0.14447596]
[1768233987469,0.34809525,3136.8,3133.7,0.14192029]
[1768233987663,1.95435269,3135.9,3133.7,0.14192029]
[1768233987975,4.502,3135.8,3133.7,0.14192029]
[1768233988474,1.31,3135.7,3133.7,0.14192029]
[1768233988674,1.31,3135.7,3133.7,0.1452275]
[1768233990066,1.95435269,3135.4,3133.7,0.00330721]
[1768233990259,1.95667917,3135.4,3133.7,0.00330721]
[1768233990467,1.95435269,3134.7,3132.7,0.14192029]
[1768233990765,1.95435269,3135.2,3132.7,0.14192029]
[1768233990962,1.31,3134.6,3132.7,0.14192029]
[1768233991668,1.31,3134.6,3132.7,0.14479844]
[1768233993974,1.31,3135.1,3133.2,0.14192029]
[1768233996371,1.31,3135.1,3132.7,0.00287815]
[1768233996372,1.31,3135.1,3132.7,0.13509831]
[1768233998380,1.95435269,3134.0,3132.7,0.00287815]
[1768233998680,4.504,3133.9,3131.4,0.13222016]
[1768233999177,1.95435269,3133.5,3131.4,0.13222016]
[1768233999571,1.95435269,3133.6,3131.4,0.13600831]
[1768233999972,4.504,3133.5,3131.4,0.13600831]
[1768234001085,1.95435269,3132.6,3131.4,0.00378815]
[1768234001379,0.00333712,3132.6,3131.4,0.00378815]
[1768234003374,1.95768981,3132.6,3131.4,0.00378815]
[1768234003582,1.95768981,3132.6,3130.5,0.13222016]
[1768234003982,0.00333712,3132.6,3130.5,0.13222016]
[1768234004284,1.95768981,3132.6,3130.5,0.13222016]
[1768234004494,4.505,3132.5,3130.5,0.1351008]
[1768234004778,4.505,3132.4,3130.5,0.1351008]
[1768234004984,1.311,3132.3,3130.5,0.1351008]
[1768234006080,3.194,3132.4,3130.5,0.1351008]
[1768234006081,1.311,3132.2,3130.5,0.1351008]
[1768234006382,4.506,3132.2,3130.5,0.1351008]
[1768234007385,0.00333712,3132.6,3130.5,0.1351008]
[1768234007680,1.311,3132.5,3130.5,0.1351008]
[1768234009177,1.311,3132.5,3130.6,0.13222016]
[1768234011785,1.95435269,3132.3,3130.5,0.00288064]
[1768234013480,1.57734391,3132.5,3130.5,0.1351008]
[1768234013481,1.311,3132.5,3130.5,0.1351008]
[1768234013783,0.00333712,3132.6,3130.5,0.1351008]
[1768234013980,0.00333712,3132.6,3130.6,0.13222016]
[1768234014381,0.652,3132.5,3130.6,0.13222016]
[1768234019692,1.311,3132.5,3131.1,0.13222016]
[1768234019891,0.00333712,3132.6,3131.7,0.13222016]
[1768234020390,3.196,3133.4,3131.8,0.13222016]
[1768234020591,1.311,3133.6,3131.8,0.13222016]
[1768234020896,1.311,3133.6,3131.9,0.13222016]
[1768234021089,1.311,3133.7,3131.9,0.13222016]
[1768234021285,1.31331001,3133.7,3131.9,0.13222016]
[1768234021491,1.31331001,3133.7,3132.2,0.13222016]
[1768234022588,0.00231001,3133.7,3132.2,0.13222016]
[1768234022788,0.00231001,3133.7,3132.7,0.13222016]
[1768234022990,2.85082919,3135.3,3132.7,0.1346063]
[1768234023190,4.85395181,3135.2,3132.7,0.1346063]
[1768234023495,4.507,3135.2,3132.7,0.1346063]
[1768234024090,4.51096631,3135.2,3132.7,0.1346063]
[1768234024494,4.506,3135.1,3132.7,0.1346063]
[1768234024894,1.95435269,3132.8,3130.5,5.65176666]
[1768234025193,4.72917848,3132.7,3130.3,0.13828457]
[1768234025494,4.72917848,3132.6,3130.3,0.13828457]
[1768234025797,0.95317848,3132.5,3130.3,0.13828457]
[1768234025997,1.95435269,3132.3,3130.3,0.14144073]
[1768234026184,0.95317848,3132.2,3130.3,0.14144073]
[1768234027300,1.0,3132.0,3130.3,0.14144073]
[1768234027508,1.0,3132.0,3129.0,0.13828457]
[1768234027509,1.95435269,3131.3,3129.0,0.13828457]
[1768234027697,5.45917848,3131.2,3129.0,0.13828457]
[1768234027998,0.95317848,3131.1,3129.0,0.13828457]
[1768234028500,0.95317848,3131.1,3129.0,0.14182628]
[1768234029700,5.45917848,3131.0,3129.1,0.13828457]
[1768234029897,4.14917848,3130.9,3129.1,0.13828457]
[1768234030098,0.95317848,3130.8,3129.1,0.13828457]
[1768234031896,1.95435269,3131.4,3129.1,0.13828457]
[1768234032097,1.31,3130.7,3129.1,0.13828457]
[1768234033304,3.85082919,3132.0,3129.3,0.13207715]
[1768234033511,0.95714756,3131.9,3130.3,0.13207715]
[1768234033699,1.0,3132.0,3130.3,0.13207715]
[1768234034008,1.0,3132.0,3130.4,0.13207715]
[1768234039301,0.957061,3131.9,3130.4,0.13207715]
[1768234039507,1.0,3132.0,3130.4,0.13207715]
[1768234039704,0.95706613,3131.9,3130.4,0.13207715]
[1768234039905,1.0,3132.0,3130.4,0.13207715]
[1768234040104,0.95706655,3131.9,3130.4,0.13207715]
[1768234040299,1.0,3132.0,3130.4,0.13207715]
[1768234040505,0.95704114,3131.9,3130.4,0.13207715]
[1768234040706,1.0,3132.0,3130.4,0.13207715]
[1768234040908,0.95704083,3131.9,3130.4,0.13207715]
[1768234041104,1.0,3132.0,3130.4,0.13207715]
[1768234041307,1.31,3131.9,3130.4,0.13207715]
[1768234041509,1.0,3132.0,3130.4,0.13207715]
[1768234043215,1.0,3132.0,3130.5,0.13207715]
[1768234043411,0.003976,3132.6,3130.9,0.13207715]
[1768234047310,0.003976,3132.6,3131.1,0.13207715]
[1768234050316,3.214,3133.7,3131.3,0.13207715]
[1768234051309,3.21688683,3133.7,3131.3,0.13569289]
[1768234052710,3.21688683,3133.7,3131.5,0.13207715]
[1768234054619,3.35861677,3133.7,3131.5,0.13207715]
[1768234054806,0.14461677,3133.7,3131.5,0.13207715]
[1768234055006,4.252,3133.6,3131.5,0.13207715]
[1768234055419,0.00288683,3133.7,3131.5,2.35252269]
[1768234055609,0.00288683,3133.7,3131.6,0.13348739]
[1768234066221,0.00288683,3133.7,3131.6,6.49648739]
[1768234066517,0.00288683,3133.7,3131.7,1.39548739]
[1768234066719,0.00288683,3133.7,3131.8,0.13348739]
[1768234067933,0.00288683,3133.7,3132.2,0.13348739]
[1768234068319,0.00288683,3133.7,3132.4,0.13348739]
[1768234071530,0.14172994,3135.3,3132.4,0.13348739]
[1768234071832,3.33672994,3135.3,3132.8,0.13348739]
[1768234072016,3.195,3135.4,3132.8,0.13348739]
[1768234072526,0.00276982,3135.4,3132.8,0.13348739]
[1768234073928,0.00276982,3135.4,3133.0,0.13348739]
[1768234074315,0.14449976,3135.4,3133.0,0.13348739]
[1768234077526,0.00276982,3135.4,3133.0,0.13348739]
[1768234077727,0.00276982,3135.4,3134.2,0.15968]
[1768234077922,0.00276982,3135.4,3134.4,0.15967]
[1768234078734,6.14449976,3135.4,3134.2,0.00371945]
[1768234079824,0.14172994,3135.3,3133.4,0.15973]
[1768234080426,0.14172994,3135.0,3133.4,0.15973]
[1768234080627,0.14172994,3134.8,3133.4,0.15973]
[1768234080822,3.33572994,3134.7,3133.4,0.16346895]
[1768234081026,0.14172994,3135.2,3133.4,0.00373895]
[1768234081327,0.14172994,3135.2,3133.7,0.15971]
[1768234081328,3.33572994,3135.1,3133.7,0.15971]
[1768234081832,3.194,3135.1,3133.7,0.15971]
[1768234082033,0.16238982,3135.4,3133.9,0.1597]
[1768234082034,0.00276982,3135.4,3133.9,0.1597]
[1768234082221,4.502,3135.3,3133.9,0.1597]
[1768234082423,0.00276982,3135.4,3133.9,0.1597]
[1768234082939,0.00276982,3135.4,3134.0,0.15969]
[1768234083337,0.14067656,3135.3,3133.4,0.13722634]
[1768234083638,0.14067656,3135.3,3133.5,0.15972]
[1768234084026,4.502,3135.2,3133.7,0.15971]
[1768234084531,0.14067656,3135.3,3133.4,0.13722634]
[1768234084739,0.00276982,3135.4,3133.9,0.1597]
[1768234084936,4.502,3135.3,3133.9,0.1597]
[1768234087534,7.308,3135.2,3133.9,0.1597]
[1768234087735,0.13682124,3135.1,3133.4,0.00373895]
[1768234087935,0.13342475,3134.8,3133.3,0.15973]
[1768234088336,4.502,3134.7,3133.4,0.15972]
[1768234088938,4.502,3134.7,3133.4,0.16337094]
[1768234091739,1.308,3134.6,3133.4,0.16337094]
[1768234091939,4.502,3134.6,3133.4,0.16337094]
[1768234092141,0.00276982,3135.4,3133.8,0.13273761]
[1768234092350,4.502,3135.3,3133.8,0.13273761]
[1768234092543,4.502,3135.3,3133.8,0.29243761]
[1768234092744,4.502,3135.3,3133.8,0.1597]
[1768234092941,0.00276982,3135.4,3133.5,0.13273761]
[1768234093148,1.31076982,3135.4,3134.3,0.15968]
[1768234093537,0.00276982,3135.4,3134.3,0.15968]
[1768234093748,1.31076982,3135.4,3134.3,0.15968]
[1768234098363,10.0,3135.0,3134.3,0.15968]
[1768234098863,10.0,3135.0,3134.3,0.16447088]
[1768234101462,10.0,3135.0,3134.4,0.15967]
[1768234101864,10.0,3135.0,3134.6,0.15966]
[1768234106166,0.13865211,3136.3,3134.3,0.13752849]
[1768234106370,4.507,3136.2,3134.3,0.13752849]
[1768234106570,1.314,3136.1,3134.9,0.15965]
[1768234107464,1.31769199,3136.1,3134.9,0.15965]
[1768234107663,0.13845487,3136.0,3134.4,0.15967]
[1768234107867,0.13845487,3136.0,3134.6,0.15966]
[1768234109173,1.31769199,3136.1,3134.8,0.15965]
[1768234109364,1.31769199,3136.1,3134.9,0.15965]
[1768234109674,4.64482553,3136.0,3134.9,0.15965]
[1768234109865,4.507,3136.0,3134.9,0.15965]
[1768234110368,0.00369199,3136.1,3134.3,0.13752849]
[1768234110567,0.00369199,3136.1,3135.3,0.15963]
[1768234110769,0.00369199,3136.1,3135.4,0.15962]
[1768234110966,3.78451459,3137.3,3135.7,0.13273761]
[1768234111275,1.314,3137.2,3135.7,0.13273761]
[1768234111963,0.00385421,3137.2,3136.2,0.15958]
[1768234112162,1.314,3137.1,3136.2,0.15958]
[1768234114067,1.314,3137.1,3135.7,0.13526713]
[1768234114068,1.314,3137.1,3135.7,0.00252952]
[1768234114266,1.95635115,3136.8,3135.7,0.00252952]
[1768234114668,0.13674243,3137.0,3135.7,0.00252952]
[1768234117873,1.314,3137.1,3135.7,0.00252952]
[1768234119481,0.13674243,3137.0,3135.7,0.00252952]
[1768234121180,1.313,3136.9,3135.8,0.1596]
[1768234126971,2.09309358,3136.7,3135.2,0.15963]
[1768234127177,1.313,3136.9,3135.4,0.15962]
[1768234127988,1.313,3136.9,3135.4,0.16222729]
[1768234128688,0.00385421,3137.2,3135.5,0.13237242]
[1768234128991,1.313,3137.1,3135.5,0.13237242]
[1768234129676,1.313,3137.1,3135.9,0.1596]
[1768234133678,1.313,3137.1,3135.5,0.13237242]
[1768234133877,0.13674243,3137.0,3135.4,0.16222729]
[1768234134089,2.09309358,3136.9,3135.4,0.16222729]
[1768234137391,2.09309358,3136.9,3135.5,0.15962]
[1768234137895,2.09309358,3136.9,3135.6,0.15961]
[1768234138294,0.00385421,3137.2,3135.4,0.13497971]
[1768234138490,4.504,3137.1,3135.6,0.13237242]
[1768234139092,4.504,3137.1,3136.0,0.15959]
[1768234139297,4.64074243,3137.1,3136.0,0.15959]
[1768234140587,1.95635115,3136.7,3135.4,0.00260729]
[1768234141693,1.95635115,3136.7,3135.4,0.16222729]
[1768234142294,4.504,3136.6,3135.4,0.16222729]
[1768234142494,4.504,3136.6,3135.4,0.29459971]
[1768234143496,4.505,3136.5,3135.4,0.29459971]
[1768234145505,0.15954,3137.0,3135.5,0.13356283]
[1768234145700,1.66250217,3136.9,3135.5,0.13356283]
[1768234145905,0.34950217,3136.8,3135.5,0.13356283]
[1768234146200,0.34950217,3136.8,3135.4,0.16222729]
[1768234146395,1.95635115,3136.6,3134.8,0.15965]
[1768234146807,0.34953645,3136.5,3134.8,0.15965]
[1768234147015,1.95635115,3136.6,3134.8,0.15965]
[1768234147016,0.34953645,3136.4,3134.8,0.15965]
[1768234147205,0.34953645,3136.3,3134.8,0.15965]
[1768234147406,0.34953645,3136.2,3134.8,0.16249333]
[1768234147605,1.313,3136.1,3134.8,0.16249333]
[1768234148114,3.26935115,3136.1,3134.8,0.00284333]
[1768234148310,1.95635115,3135.6,3134.2,0.29324283]
[1768234148511,5.14835115,3135.6,3134.2,0.29324283]
[1768234149213,5.14835115,3135.6,3134.2,0.29696615]
[1768234150914,3.192,3135.9,3134.8,0.13356283]
[1768234151109,3.192,3135.9,3135.0,0.29320283]
[1768234151308,4.505,3135.9,3135.1,0.13356283]
[1768234152310,4.505,3135.9,3135.1,0.29320283]
[1768234152311,1.312,3135.9,3135.1,0.29320283]
[1768234152510,1.312,3135.9,3135.2,0.14551088]
[1768234154519,1.312,3135.9,3134.2,0.00372332]
[1768234154520,3.26835115,3135.9,3134.4,0.14551088]
[1768234154912,1.312,3135.9,3134.4,0.14551088]
[1768234155224,1.312,3135.9,3134.8,0.15965]
[1768234155415,1.312,3135.9,3134.4,0.14551088]
[1768234155617,3.26835115,3135.9,3134.3,0.15968]
[1768234155923,1.95635115,3135.9,3134.3,0.15968]
[1768234156112,4.504,3135.8,3134.3,0.15968]
[1768234156514,4.504,3135.8,3134.3,0.30519088]
[1768234156818,2.01187865,3136.4,3134.5,0.14551088]
[1768234157122,4.84145487,3136.3,3134.5,0.14551088]
[1768234157321,4.504,3136.3,3134.5,0.14551088]
[1768234158223,2.01187865,3136.4,3134.5,0.14551088]
[1768234158224,4.505,3136.2,3134.5,0.14551088]
[1768234159517,0.15957,3136.5,3134.7,0.14551088]
[1768234159724,4.84217469,3136.4,3134.8,0.14551088]
[1768234159918,4.505,3136.4,3134.8,0.14551088]
[1768234160223,0.15957,3136.5,3134.8,0.14551088]
[1768234160713,4.505,3136.4,3134.8,0.14551088]
[1768234160911,1.95635115,3136.7,3135.0,0.15964]
[1768234161117,1.95635115,3136.7,3134.8,0.14551088]
[1768234161118,4.506,3136.6,3134.8,0.14551088]
[1768234161819,1.95635115,3137.0,3134.8,0.14551088]
[1768234162019,1.313,3136.5,3134.8,0.14551088]
[1768234162320,1.95635115,3137.0,3135.3,0.14551088]
[1768234162526,4.505,3136.9,3135.3,0.14551088]
[1768234163217,4.505,3136.8,3135.3,0.14551088]
[1768234163728,4.505,3136.8,3135.4,0.15962]
[1768234164225,4.505,3136.7,3135.4,0.15962]
[1768234164427,1.312,3136.6,3135.4,0.15962]
[1768234164724,4.505,3136.6,3135.4,0.15962]
[1768234164916,0.00385421,3137.2,3135.5,0.15962]
[1768234165121,0.00385421,3137.2,3135.6,0.14551088]
[1768234165122,3.193,3137.1,3135.6,0.14551088]
[1768234165320,4.505,3137.0,3135.6,0.14551088]
[1768234165826,4.505,3137.0,3135.6,0.30512088]
[1768234166129,0.00385421,3137.2,3135.6,0.30512088]
[1768234166322,1.312,3136.9,3135.6,0.30512088]
[1768234169326,1.31672874,3136.9,3135.1,0.30515088]
[1768234170126,0.00414833,3136.8,3135.1,0.15964]
[1768234170821,4.504,3136.7,3135.2,0.30514088]
[1768234171420,4.504,3136.7,3135.2,0.15963]
[1768234172940,0.00414833,3136.9,3135.2,0.15963]
[1768234173132,4.83110809,3136.8,3135.2,0.15963]
[1768234173430,4.504,3136.8,3135.2,0.15963]
[1768234174328,0.15954,3137.0,3135.3,0.13559742]
[1768234174628,1.63913844,3136.9,3135.3,0.13559742]
[1768234174829,4.504,3136.9,3135.3,0.29522742]
[1768234175029,0.00385421,3137.2,3135.3,0.13559742]
[1768234175229,3.192,3136.8,3135.7,0.13559742]
[1768234175737,3.192,3136.8,3135.9,0.00478316]
[1768234175928,0.00385421,3137.2,3135.9,0.00478316]
[1768234176234,4.504,3137.1,3135.9,0.00478316]
[1768234178436,0.00385421,3137.2,3135.9,0.00478316]
[1768234178742,1.312,3137.0,3135.9,0.00478316]
[1768234179233,0.00385421,3137.2,3135.9,0.29998058]
[1768234179427,4.504,3136.9,3135.9,0.29998058]
[1768234179735,4.504,3136.8,3135.9,0.29998058]
[1768234179924,0.00385421,3137.2,3136.0,0.29518742]
[1768234180130,4.504,3137.1,3136.0,0.13559742]
[1768234180427,0.00385421,3137.2,3136.2,0.29517742]
[1768234180624,4.504,3137.1,3136.2,0.29517742]
[1768234181437,0.00385421,3137.2,3136.2,0.13559742]
[1768234181836,4.504,3137.1,3136.2,0.13559742]
[1768234182440,1.312,3137.0,3136.2,0.13559742]
[1768234182738,4.504,3137.0,3136.4,0.15957]
[1768234182942,4.504,3137.0,3136.4,0.16315367]
[1768234183134,1.312,3136.9,3136.5,0.13559742]
[1768234183438,1.312,3136.8,3136.5,0.13559742]
[1768234183631,0.00385421,3137.2,3136.5,0.13559742]
[1768234183832,4.504,3137.1,3136.5,0.13559742]
[1768234184039,0.00385421,3137.2,3136.5,0.13559742]
[1768234184247,4.504,3137.1,3136.5,0.13559742]
[1768234184546,4.504,3137.1,3136.4,0.16315367]
[1768234189434,4.503,3137.0,3136.4,0.16315367]
[1768234190933,0.00385421,3137.2,3136.4,0.16315367]
[1768234191139,4.503,3137.1,3136.4,0.16315367]
[1768234191635,0.00385421,3137.2,3135.9,0.00478316]
[1768234191847,4.503,3137.1,3135.9,0.16438316]
[1768234192342,1.311,3137.0,3135.9,0.16438316]
[1768234192552,4.503,3137.0,3135.9,0.16438316]
[1768234192845,4.503,3137.0,3135.9,0.16833532]
[1768234195463,4.503,3136.9,3135.9,0.16833532]
[1768234200153,0.00385421,3137.2,3135.9,0.16833532]
[1768234200453,1.311,3136.8,3135.9,0.16833532]
[1768234201054,0.00165577,3137.0,3135.5,0.15962]
[1768234201252,0.00478316,3136.7,3135.5,0.15962]
[1768234201555,0.00478316,3136.7,3135.1,0.15964]
[1768234201755,0.00478316,3136.7,3133.6,6.363]
[1768234201756,4.503,3136.6,3135.5,0.29521742]
[1768234202052,0.00478316,3136.7,3135.6,0.13559742]
[1768234202253,3.192,3136.5,3135.6,0.13559742]
[1768234202444,0.00478316,3136.7,3135.6,0.13559742]
[1768234202649,4.503,3136.6,3135.6,0.13559742]
[1768234203049,0.00478316,3136.7,3135.6,0.13559742]
[1768234203256,4.503,3136.6,3135.6,0.13559742]
[1768234203652,0.00478316,3136.7,3136.2,0.29517742]
[1768234203854,0.00385421,3137.2,3136.4,0.13559742]
[1768234204056,1.311,3137.5,3136.4,0.13559742]
[1768234204243,0.15945,3138.9,3137.0,0.13358616]
[1768234204442,0.32730013,3138.8,3137.0,0.13358616]
[1768234204748,4.503,3138.7,3137.2,0.29311616]
[1768234204952,4.50641722,3138.7,3137.2,0.29311616]
[1768234205145,0.00341722,3138.7,3137.2,0.29311616]
[1768234205356,4.503,3138.6,3137.2,0.29311616]
[1768234205558,4.503,3138.5,3137.3,0.13358616]
[1768234206052,2.21924354,3138.7,3136.7,0.13358616]
[1768234206253,1.311,3138.4,3136.7,0.13358616]
[1768234206646,1.311,3138.4,3136.8,0.13358616]
[1768234207252,2.21924354,3138.7,3136.8,0.13358616]
[1768234207550,4.502,3138.6,3136.8,0.13358616]
[1768234208765,4.502,3138.6,3136.9,0.15955]
[1768234209261,2.21582632,3138.1,3136.4,0.13358616]
[1768234209859,0.15947,3138.4,3136.4,0.13358616]
[1768234210054,0.32692812,3138.3,3136.4,0.13358616]
[1768234210261,4.82892812,3138.2,3136.4,0.13358616]
[1768234210469,4.502,3138.2,3136.4,0.13358616]
[1768234211054,0.32694891,3138.1,3136.4,0.13358616]
[1768234211254,4.502,3138.2,3136.4,0.13358616]
[1768234211454,0.32695383,3138.1,3136.4,0.13358616]
[1768234211662,4.502,3138.0,3136.4,0.13358616]
[1768234211964,4.502,3138.0,3136.3,0.15958]
[1768234212462,0.32697326,3137.9,3136.3,0.15958]
[1768234212664,4.502,3138.0,3136.3,0.15958]
[1768234212858,0.32697135,3137.9,3136.3,0.15958]
[1768234213158,0.15949,3138.2,3136.3,0.15958]
[1768234213362,4.502,3137.8,3136.3,0.15958]
[1768234213750,0.15949,3138.2,3136.3,0.15958]
[1768234213958,1.63795682,3138.1,3136.3,0.15958]
[1768234214266,0.32695682,3138.0,3136.3,0.15958]
[1768234214468,4.502,3138.1,3136.3,0.15958]
[1768234214663,0.32695665,3138.0,3136.3,0.15958]
[1768234214968,4.502,3137.9,3136.3,0.15958]
[1768234216369,0.15949,3138.2,3136.3,0.15958]
[1768234216665,4.82895634,3138.1,3136.3,0.15958]
[1768234216856,4.82895634,3138.0,3136.3,0.30301722]
[1768234217058,4.502,3138.0,3136.3,0.30301722]
[1768234218770,2.37534632,3137.5,3135.7,0.15961]
[1768234221561,2.21582632,3136.7,3135.1,0.15964]
[1768234221767,0.15955,3136.9,3135.0,0.14343722]
[1768234221967,1.31,3136.8,3135.1,0.14343722]
[1768234222271,1.31,3136.7,3135.1,0.14343722]
[1768234222468,0.15955,3136.9,3135.1,0.14343722]
[1768234222674,1.31,3136.8,3135.1,0.14631405]
[1768234222974,4.501,3136.8,3135.1,0.14631405]
[1768234223175,4.501,3136.7,3135.1,0.14631405]
[1768234223675,4.501,3136.7,3135.1,0.30595405]
[1768234223874,4.501,3136.7,3135.1,0.16251683]
[1768234224076,4.66056,3136.7,3134.6,0.14343722]
[1768234224278,2.21582632,3136.4,3134.6,0.14343722]
[1768234224680,4.82863234,3136.3,3134.4,0.15967]
[1768234224880,4.66158,3136.3,3134.4,0.15967]
[1768234225078,0.32664226,3136.2,3134.4,0.16311341]
[1768234225280,4.6646744,3136.3,3134.4,0.16311341]
[1768234225577,0.1626744,3136.3,3134.4,0.16311341]
[1768234225769,4.8283981,3136.2,3134.4,0.16311341]
[1768234225973,0.1626744,3136.3,3134.4,0.16311341]
[1768234226171,0.00105806,3136.1,3134.4,0.00344341]
[1768234226383,0.00105806,3135.6,3133.6,0.14343722]
[1768234226573,4.502,3135.5,3133.6,0.14343722]
[1768234226875,4.502,3135.4,3133.7,0.14343722]
[1768234227271,1.95766984,3135.3,3133.7,0.1462968]
[1768234227674,1.95766984,3135.3,3134.2,0.00478316]
[1768234228178,1.95766984,3135.3,3133.7,0.1462968]
[1768234228374,0.00478316,3135.1,3133.7,0.1462968]
[1768234229275,0.00478316,3135.1,3134.1,0.30312722]
[1768234229276,4.502,3135.0,3134.1,0.30312722]
[1768234229976,4.502,3135.0,3133.7,0.00285958]
[1768234230283,6.45966984,3135.0,3133.7,0.00285958]
[1768234230488,6.45966984,3135.0,3133.6,0.14343722]
[1768234231683,6.45966984,3135.0,3133.6,0.14725202]
[1768234234084,1.95766984,3135.0,3133.6,0.14725202]
[1768234234287,4.504,3134.9,3133.6,0.14725202]
[1768234234790,1.95766984,3135.0,3133.6,0.14725202]
[1768234234974,4.504,3134.9,3133.6,0.14725202]
[1768234235173,4.504,3134.8,3133.6,0.14725202]
[1768234235487,3.193,3134.9,3134.2,0.14629701]
[1768234235685,1.311,3134.8,3134.2,0.14629701]
[1768234236889,0.00478316,3135.1,3134.2,6.14629701]
[1768234237190,1.164505,3135.0,3134.6,0.14629701]
[1768234237992,1.164505,3135.0,3134.0,0.15969]
[1768234238180,4.504,3134.9,3134.2,0.15968]
[1768234238381,4.504,3134.8,3134.2,0.15968]
[1768234239282,0.00478316,3135.1,3134.2,0.15968]
[1768234239483,0.00478316,3135.1,3134.3,0.14629701]
[1768234239684,3.828,3135.0,3134.3,0.14629701]
[1768234240585,1.31,3134.9,3134.3,0.14629701]
[1768234241786,1.31,3134.8,3134.5,0.14629701]
[1768234241993,1.01701,3134.7,3134.5,0.14629701]
[1768234242184,1.31,3134.6,3134.4,0.15967]
[1768234242380,1.31,3134.6,3133.7,0.14629701]
[1768234243290,1.31,3134.6,3134.3,0.15968]
[1768234244383,0.00478316,3135.1,3134.3,0.15968]
[1768234244584,1.31,3135.0,3134.4,0.15967]
[1768234245393,0.00478316,3135.1,3134.4,0.15967]
[1768234245594,1.31,3135.0,3134.4,0.15967]
[1768234246494,1.31,3135.0,3134.2,0.15968]
[1768234247183,1.31,3135.0,3133.6,0.0038148]
[1768234247388,1.31,3135.0,3134.2,0.15968]
[1768234247694,1.31,3134.9,3134.2,0.15968]
[1768234248695,1.31,3134.9,3134.4,0.15967]
[1768234248893,0.14341647,3136.2,3134.4,0.14629701]
[1768234249086,0.14341647,3136.2,3135.1,0.15964]
[1768234249294,4.503,3136.1,3135.2,0.15963]
[1768234249490,4.64641647,3136.1,3135.2,0.15963]
[1768234249883,1.31,3136.0,3135.2,0.15963]
[1768234250088,4.503,3135.9,3134.4,0.14629701]
[1768234250389,1.31,3135.8,3134.4,0.14629701]
[1768234250584,1.31,3135.8,3135.3,0.15963]
[1768234250989,3.193,3136.4,3134.6,0.14629701]
[1768234251189,0.14341647,3136.6,3134.8,0.14629701]
[1768234251498,1.31,3136.2,3135.7,0.15961]
[1768234251796,1.31,3136.1,3135.8,0.1596]
[1768234251994,1.3130944,3136.3,3135.8,0.1623207]
[1768234252993,1.31,3136.2,3135.8,0.1623207]
[1768234253394,0.0030944,3136.3,3135.8,0.1623207]
[1768234253597,1.31,3136.2,3135.8,0.1623207]
[1768234254000,0.0030944,3136.3,3135.8,0.1623207]
[1768234254293,1.31,3136.1,3135.8,0.1623207]
[1768234254692,0.0030944,3136.3,3135.8,0.1623207]
[1768234254893,1.31,3136.2,3135.8,0.1623207]
[1768234256697,0.0030944,3136.3,3135.8,0.1623207]
[1768234257000,1.31,3136.1,3135.8,0.1623207]
[1768234257295,0.0030944,3136.3,3135.8,0.1623207]